fUSD/lending_fUSD_20260129
["ID","MTS","AMOUNT","RATE_DAILY","PERIOD"]
[403947223,1769685050203,-154.86,0.00041463,120]
[403947224,1769685050212,-433.0,0.0004148,60]
[403947225,1769685050221,-379.63759782,0.0004148,60]
[403947226,1769685050229,-500.0,0.0004148,60]
[403947227,1769685050238,-500.0,0.0004148,60]
[403947228,1769685050247,-290.22964713,0.0004148,60]
[403947229,1769685050256,-555.0,0.0004148,60]
[403947230,1769685050265,-500.0,0.0004148,60]
[403947231,1769685050274,-500.0,0.0004148,60]
[403947232,1769685050283,-437.0,0.0004148,60]
[403947233,1769685050292,-500.0,0.0004148,60]
[403947234,1769685050302,-500.0,0.0004148,60]
[403947235,1769685050311,-500.0,0.0004148,2]
[403947236,1769685050320,-250.0,0.000415,45]
[403947237,1769685050333,-151.0,0.000415,120]
[403947238,1769685050343,-433.0,0.00041535,60]
[403947239,1769685050352,-500.0,0.00041535,60]
[403947240,1769685050362,-500.0,0.00041535,60]
[403947241,1769685050373,-555.0,0.00041535,60]
[403947242,1769685050382,-500.0,0.00041535,60]
[403947243,1769685050391,-500.0,0.00041535,60]
[403947244,1769685050401,-437.0,0.00041535,60]
[403947245,1769685050410,-500.0,0.00041535,60]
[403947246,1769685050420,-500.0,0.00041535,60]
[403947247,1769685050429,-500.0,0.00041535,2]
[403947248,1769685050438,-151.0,0.00041535,120]
[403947249,1769685050447,-151.0,0.00041535,120]
[403947250,1769685050457,-151.0,0.00041535,120]
[403947251,1769685050467,-151.0,0.00041535,120]
[403947252,1769685050476,-151.0,0.00041535,120]
[403947253,1769685050485,-152.055666,0.00041535,120]
[403947254,1769685050494,-151.0,0.00041535,120]
[403947255,1769685050504,-153.955043,0.00041535,120]
[403947256,1769685050513,-151.0,0.00041535,120]
[403947257,1769685050523,-1016.405264,0.00041535,120]
[403947258,1769685050532,-1016.405264,0.00041535,120]
[403947259,1769685050541,-1016.405264,0.00041535,120]
[403947260,1769685050551,-151.0,0.00041535,120]
[403947261,1769685050655,-1016.405264,0.00041535,120]
[403947262,1769685050700,-151.0,0.00041535,120]
[403947263,1769685050709,-153.629153,0.00041535,120]
[403947264,1769685050718,-151.0,0.00041535,120]
[403947265,1769685050727,-151.0,0.00041535,120]
[403947266,1769685050736,-151.0,0.00041535,120]
[403947267,1769685050747,-151.0,0.00041535,120]
[403947268,1769685050756,-151.0,0.00041535,120]
[403947269,1769685050765,-151.0,0.00041535,120]
[403947270,1769685050775,-199.473418,0.00041535,120]
[403947271,1769685050784,-151.0,0.00041535,120]
[403947272,1769685050793,-151.0,0.00041535,120]
[403947273,1769685050803,-151.0,0.00041535,120]
[403947274,1769685050812,-2914.049504,0.00041535,120]
[403947275,1769685050821,-151.0,0.00041535,120]
[403947276,1769685050830,-336.420004,0.00041535,120]
[403947277,1769685050840,-151.0,0.00041535,120]
[403947278,1769685050850,-151.0,0.00041535,120]
[403947279,1769685050860,-2914.049504,0.00041535,120]
[403947280,1769685050869,-911.021408,0.00041535,120]
[403947281,1769685050879,-2914.049504,0.00041535,120]
[403947282,1769685050888,-911.021408,0.00041535,120]
[403947283,1769685050898,-336.420004,0.00041535,120]
[403947284,1769685050907,-911.021408,0.00041535,120]
[403947285,1769685050916,-2914.049504,0.00041535,120]
[403947286,1769685050926,-336.420004,0.00041535,120]
[403947287,1769685050935,-911.021408,0.00041535,120]
[403947288,1769685050944,-336.420004,0.00041535,120]
[403947289,1769685050953,-1634.078107,0.00041535,120]
[403947290,1769685050963,-1634.078107,0.00041535,120]
[403947291,1769685050972,-1634.078107,0.00041535,120]
[403947292,1769685050981,-1634.078107,0.00041535,120]
[403947293,1769685050990,-185.192516,0.00041535,120]
[403947294,1769685050999,-185.192516,0.00041535,120]
[403947295,1769685051008,-185.192516,0.00041535,120]
[403947296,1769685051017,-185.192516,0.00041535,120]
[403947297,1769685051027,-168.825338,0.00041535,120]
[403947298,1769685051036,-151.0,0.00041535,120]
[403947299,1769685051046,-151.0,0.00041535,120]
[403947300,1769685051055,-393.091377,0.00041535,120]
[403947301,1769685051064,-157.481207,0.00041535,120]
[403947302,1769685051073,-393.091377,0.00041535,120]
[403947303,1769685051083,-152.909129,0.00041535,120]
[403947304,1769685051093,-393.091377,0.00041535,120]
[403947305,1769685051103,-151.0,0.00041535,120]
[403947306,1769685051114,-393.091377,0.00041535,120]
[403947307,1769685051124,-151.0,0.00041535,120]
[403947308,1769685051133,-1361.9,0.0004156,120]
[403947309,1769685051142,-154.86,0.00041563,120]
[403947310,1769685051152,-385.5355018,0.00041589,30]
[403947311,1769685051161,-433.0,0.0004159,60]
[403947312,1769685051171,-500.0,0.0004159,60]
[403947313,1769685051180,-204.87785058,0.0004159,60]
[403947314,1769685051189,-555.0,0.0004159,60]
[403947315,1769685051199,-500.0,0.0004159,60]
[403947316,1769685051208,-500.0,0.0004159,60]
[403947317,1769685051218,-437.0,0.0004159,60]
[403947318,1769685051227,-301.95608544,0.0004159,60]
[403947319,1769685051237,-500.0,0.0004159,60]
[403947320,1769685051246,-353.1543642,0.0004159,2]
[403947321,1769685051257,-1120.63,0.000416,14]
[403947322,1769685051266,-433.0,0.00041645,60]
[403947323,1769685051276,-500.0,0.00041645,60]
[403947324,1769685051286,-555.0,0.00041645,60]
[403947325,1769685051296,-500.0,0.00041645,60]
[403947326,1769685051306,-500.0,0.00041645,60]
[403947327,1769685051317,-437.0,0.00041645,60]
[403947328,1769685051328,-500.0,0.00041645,60]
[403947329,1769685051341,-154.86,0.00041663,120]
[403947330,1769685051350,-1826.0,0.00041687,11]
[403947331,1769685051360,-2172.0,0.00041687,11]
[403947332,1769685051370,-500.0,0.00041699,120]
[403947333,1769685051381,-858.62,0.00041699,2]
[403947334,1769685051391,-500.0,0.00041699,10]
[403947335,1769685051400,-433.0,0.00041699,60]
[403947336,1769685051411,-375.67688444,0.00041699,60]
[403947337,1769685051421,-555.0,0.00041699,60]
[403947338,1769685051431,-500.0,0.00041699,60]
[403947339,1769685051441,-500.0,0.00041699,60]
[403947340,1769685051450,-437.0,0.00041699,60]
[403947341,1769685051460,-500.0,0.00041699,60]
[403947342,1769685051469,-385.5355018,0.00041753,30]
[403947343,1769685051480,-151.0,0.00041754,120]
[403947344,1769685051491,-151.0,0.00041754,120]
[403947345,1769685051501,-151.0,0.00041754,120]
[403947346,1769685051510,-151.0,0.00041754,20]
[403947347,1769685051519,-151.0,0.00041754,120]
[403947348,1769685051529,-151.0,0.00041754,20]
[403947349,1769685051538,-151.0,0.00041754,120]
[403947350,1769685051548,-201.217087,0.00041754,20]
[403947351,1769685051557,-637.093796,0.00041754,120]
[403947352,1769685051566,-637.093796,0.00041754,120]
[403947353,1769685051575,-637.093796,0.00041754,120]
[403947354,1769685051585,-156.803385,0.00041754,120]
[403947355,1769685051594,-296.875895,0.00041754,120]
[403947356,1769685051604,-637.093796,0.00041754,120]
[403947357,1769685051615,-151.0,0.00041754,120]
[403947358,1769685051624,-296.875895,0.00041754,120]
[403947359,1769685051633,-151.0,0.00041754,60]
[403947360,1769685051642,-296.875895,0.00041754,120]
[403947361,1769685051652,-296.875895,0.00041754,120]
[403947362,1769685051661,-252.51538,0.00041754,120]
[403947363,1769685051670,-151.0,0.00041754,120]
[403947364,1769685051679,-151.0,0.00041754,120]
[403947365,1769685051688,-151.0,0.00041754,120]
[403947366,1769685051697,-151.0,0.00041754,120]
[403947367,1769685051707,-594.592752,0.00041754,120]
[403947368,1769685051716,-394.961183,0.00041754,120]
[403947369,1769685051726,-151.0,0.00041754,120]
[403947370,1769685051735,-594.592752,0.00041754,120]
[403947371,1769685051744,-394.961183,0.00041754,120]
[403947372,1769685051753,-151.0,0.00041754,120]
[403947373,1769685051763,-594.592752,0.00041754,120]
[403947374,1769685051772,-394.961183,0.00041754,120]
[403947375,1769685051781,-594.592752,0.00041754,120]
[403947376,1769685051791,-394.961183,0.00041754,120]
[403947377,1769685051801,-1674.925912,0.00041754,120]
[403947378,1769685051810,-151.0,0.00041754,120]
[403947379,1769685051820,-1674.925912,0.00041754,120]
[403947380,1769685051829,-153.85598,0.00041754,120]
[403947381,1769685051838,-1674.925912,0.00041754,120]
[403947382,1769685051847,-1674.925912,0.00041754,120]
[403947383,1769685051858,-151.0,0.00041754,120]
[403947384,1769685051867,-151.0,0.00041754,120]
[403947385,1769685051876,-151.0,0.00041754,120]
[403947386,1769685051886,-151.0,0.00041754,120]
[403947387,1769685051895,-151.0,0.00041754,120]
[403947388,1769685051904,-1335.538442,0.00041754,120]
[403947389,1769685051914,-1335.538442,0.00041754,120]
[403947390,1769685051923,-1335.538442,0.00041754,120]
[403947391,1769685051933,-1335.538442,0.00041754,120]
[403947392,1769685051942,-248.403044,0.00041754,120]
[403947393,1769685051951,-154.781592,0.00041754,120]
[403947394,1769685051960,-151.0,0.00041754,120]
[403947395,1769685051969,-248.403044,0.00041754,120]
[403947396,1769685051979,-248.403044,0.00041754,120]
[403947397,1769685051989,-151.0,0.00041754,120]
[403947398,1769685051999,-151.0,0.00041754,120]
[403947399,1769685052008,-248.403044,0.00041754,120]
[403947400,1769685052018,-151.0,0.00041754,120]
[403947401,1769685052029,-151.0,0.00041754,120]
[403947402,1769685052039,-151.0,0.00041754,120]
[403947403,1769685052049,-194.751559,0.00041754,120]
[403947404,1769685052059,-194.751559,0.00041754,120]
[403947405,1769685052068,-151.0,0.00041754,120]
[403947406,1769685052077,-194.751559,0.00041754,120]
[403947407,1769685052088,-151.0,0.00041754,120]
[403947408,1769685052097,-194.751559,0.00041754,120]
[403947409,1769685052106,-151.0,0.00041754,120]
[403947410,1769685052116,-151.0,0.00041754,120]
[403947411,1769685052125,-299.195464,0.00041754,120]
[403947412,1769685052134,-151.0,0.00041754,120]
[403947413,1769685052144,-813.836942,0.00041754,120]
[403947414,1769685052153,-151.0,0.00041754,120]
[403947415,1769685052163,-151.0,0.00041754,120]
[403947416,1769685052172,-813.836942,0.00041754,120]
[403947417,1769685052182,-151.528799,0.00041754,120]
[403947418,1769685052191,-813.836942,0.00041754,120]
[403947419,1769685052203,-813.836942,0.00041754,120]
[403947420,1769685052212,-151.0,0.00041754,120]
[403947421,1769685052222,-151.0,0.00041754,120]
[403947422,1769685052232,-152.822555,0.00041754,120]
[403947423,1769685052242,-254.964355,0.00041754,120]
[403947424,1769685052252,-254.964355,0.00041754,120]
[403947425,1769685052261,-254.964355,0.00041754,120]
[403947426,1769685052270,-254.964355,0.00041754,120]
[403947427,1769685052279,-151.0,0.00041754,120]
[403947428,1769685052289,-367.425734,0.00041754,7]
[403947429,1769685052298,-367.425734,0.00041754,7]
[403947430,1769685052307,-253.294415,0.00041754,120]
[403947431,1769685052317,-253.294415,0.00041754,120]
[403947432,1769685052327,-367.425734,0.00041754,7]
[403947433,1769685052340,-253.294415,0.00041754,120]
[403947434,1769685052350,-253.294415,0.00041754,120]
[403947435,1769685052360,-151.0,0.00041754,120]
[403947436,1769685052370,-151.0,0.00041754,120]
[403947437,1769685052379,-151.0,0.00041754,120]
[403947438,1769685052389,-151.0,0.00041754,120]
[403947439,1769685052398,-181.381648,0.00041754,120]
[403947440,1769685052409,-367.425734,0.00041754,7]
[403947441,1769685052419,-151.0,0.00041754,120]
[403947442,1769685052433,-151.0,0.00041754,120]
[403947443,1769685052442,-151.0,0.00041754,120]
[403947444,1769685052451,-151.0,0.00041754,120]
[403947445,1769685052461,-151.0,0.00041754,120]
[403947446,1769685052470,-151.0,0.00041754,120]
[403947447,1769685052480,-433.0,0.00041754,60]
[403947448,1769685052490,-555.0,0.00041754,60]
[403947449,1769685052499,-500.0,0.00041754,60]
[403947450,1769685052509,-500.0,0.00041754,60]
[403947451,1769685052518,-437.0,0.00041754,60]
[403947452,1769685052527,-500.0,0.00041754,60]
[403947453,1769685052536,-154.86,0.00041763,120]
[403947454,1769685052546,-5272.18801332,0.000418,120]
[403947455,1769685052555,-218.12,0.000418,120]
[403947456,1769685052564,-433.0,0.00041809,60]
[403947457,1769685052573,-555.0,0.00041809,60]
[403947458,1769685052583,-500.0,0.00041809,60]
[403947459,1769685052591,-500.0,0.00041809,60]
[403947460,1769685052601,-437.0,0.00041809,60]
[403947461,1769685052610,-500.0,0.00041809,60]
[403947462,1769685052619,-150.0,0.00041845,120]
[403947463,1769685052629,-2832.0,0.00041854,11]
[403947464,1769685052638,-154.86,0.00041863,120]
[403947465,1769685052647,-433.0,0.00041864,60]
[403947466,1769685052656,-555.0,0.00041864,60]
[403947467,1769685052666,-500.0,0.00041864,60]
[403947468,1769685052675,-500.0,0.00041864,60]
[403947469,1769685052684,-437.0,0.00041864,60]
[403947470,1769685052693,-500.0,0.00041864,60]
[403947471,1769685052702,-165.0,0.00041871,11]
[403947472,1769685052711,-151.0,0.000419,120]
[403947473,1769685052721,-6261.83,0.000419,30]
[403947474,1769685052730,-8600.0,0.000419,15]
[403947475,1769685052738,-1893.17330617,0.000419,120]
[403947476,1769685052748,-1893.17330617,0.000419,120]
[403947477,1769685052757,-1893.17330617,0.000419,120]
[403947478,1769685052767,-1893.17330617,0.000419,120]
[403947479,1769685052776,-1893.17330617,0.000419,120]
[403947480,1769685053239,-1893.17330617,0.000419,120]
[403947481,1769685053249,-1893.17330617,0.000419,120]
[403947482,1769685053260,-1893.17330617,0.000419,120]
[403947483,1769685053270,-1893.17330617,0.000419,120]
[403947484,1769685053280,-1893.17330617,0.000419,120]
[403947485,1769685053290,-2832.0,0.00041917,16]
[403947486,1769685053300,-385.5355018,0.00041918,30]
[403947487,1769685053311,-433.0,0.00041919,60]
[403947488,1769685053321,-555.0,0.00041919,60]
[403947489,1769685053333,-604.47218601,0.00041919,60]
[403947490,1769685053344,-500.0,0.00041919,60]
[403947491,1769685053354,-437.0,0.00041919,60]
[403947492,1769685053364,-500.0,0.00041919,60]
[403947493,1769685053374,-150.0,0.00041926,120]
[403947494,1769685053389,-25000.0,0.00041946,15]
[403947495,1769685053399,-25000.0,0.00041954,15]
[403947496,1769685053411,-25000.0,0.00041963,15]
[403947497,1769685053421,-154.86,0.00041963,120]
[403947498,1769685053431,-500.0,0.00041971,120]
[403947499,1769685053441,-25000.0,0.00041972,15]
[403947500,1769685053451,-433.0,0.00041973,60]
[403947501,1769685053460,-555.0,0.00041973,60]
[403947502,1769685053471,-500.0,0.00041973,60]
[403947503,1769685053480,-437.0,0.00041973,60]
[403947504,1769685053489,-500.0,0.00041973,60]
[403947505,1769685053499,-161.21842859,0.00042,2]
[403947506,1769685053509,-2832.0,0.00042007,16]
[403947507,1769685053519,-838.0,0.00042007,16]
[403947508,1769685053528,-163.0,0.00042007,16]
[403947509,1769685053538,-433.0,0.00042028,60]
[403947510,1769685053548,-555.0,0.00042028,60]
[403947511,1769685053558,-500.0,0.00042028,60]
[403947512,1769685053567,-437.0,0.00042028,60]
[403947513,1769685053576,-500.0,0.00042028,60]
[403947514,1769685053590,-163.0,0.00042042,16]
[403947515,1769685053600,-172.8091309,0.00042049,30]
[403947516,1769685053610,-154.86,0.00042063,120]
[403947517,1769685053621,-385.5355018,0.00042082,30]
[403947518,1769685053631,-165.095293,0.00042082,120]
[403947519,1769685053640,-433.0,0.00042083,60]
[403947520,1769685053650,-555.0,0.00042083,60]
[403947521,1769685053659,-500.0,0.00042083,60]
[403947522,1769685053669,-437.0,0.00042083,60]
[403947523,1769685053678,-500.0,0.00042083,60]
[403947524,1769685053687,-4439.46,0.000421,14]
[403947525,1769685053696,-8514.0,0.0004212,30]
[403947526,1769685053705,-433.0,0.00042138,60]
[403947527,1769685053715,-555.0,0.00042138,60]
[403947528,1769685053724,-500.0,0.00042138,60]
[403947529,1769685053733,-437.0,0.00042138,60]
[403947530,1769685053743,-500.0,0.00042138,60]
[403947531,1769685053752,-154.86,0.00042163,120]
[403947532,1769685053761,-500.0,0.00042181,60]
[403947533,1769685053771,-613.01887186,0.00042181,60]
[403947534,1769685053783,-900.0,0.00042181,60]
[403947535,1769685053792,-433.0,0.00042193,60]
[403947536,1769685053801,-555.0,0.00042193,60]
[403947537,1769685053811,-500.0,0.00042193,60]
[403947538,1769685053820,-437.0,0.00042193,60]
[403947539,1769685053830,-500.0,0.00042193,60]
[403947540,1769685053840,-151.0,0.000422,120]
[403947541,1769685053849,-1924.6116,0.00042203,30]
[403947542,1769685053859,-838.0,0.00042237,16]
[403947543,1769685053869,-838.0,0.00042238,16]
[403947544,1769685053879,-385.5355018,0.00042247,30]
[403947545,1769685053888,-433.0,0.00042247,60]
[403947546,1769685053898,-555.0,0.00042247,60]
[403947547,1769685053908,-500.0,0.00042247,60]
[403947548,1769685053917,-437.0,0.00042247,60]
[403947549,1769685053927,-188.59501602,0.00042247,60]
[403947550,1769685053937,-2832.0,0.00042253,16]
[403947551,1769685053947,-154.86,0.00042263,120]
[403947552,1769685053957,-433.0,0.00042302,60]
[403947553,1769685053966,-555.0,0.00042302,60]
[403947554,1769685053976,-300.0,0.00042302,60]
[403947555,1769685053986,-437.0,0.00042302,60]
[403947556,1769685053996,-433.0,0.00042357,60]
[403947557,1769685054006,-555.0,0.00042357,60]
[403947558,1769685054016,-437.0,0.00042357,60]
[403947559,1769685054026,-154.86007624,0.00042363,120]
[403947560,1769685054036,-838.0,0.00042373,16]
[403947561,1769685054046,-2486.00465561,0.00042389,7]
[403947562,1769685054056,-385.5355018,0.00042411,30]
[403947563,1769685054066,-433.0,0.00042412,60]
[403947564,1769685054075,-555.0,0.00042412,60]
[403947565,1769685054085,-437.0,0.00042412,60]
[403947566,1769685054094,-163.0,0.00042419,16]
[403947567,1769685054104,-500.0,0.00042438,120]
[403947568,1769685054113,-150.0,0.00042461,120]
[403947569,1769685054123,-433.0,0.00042466,60]
[403947570,1769685054133,-555.0,0.00042466,60]
[403947571,1769685054143,-437.0,0.00042466,60]
[403947572,1769685054152,-150.0,0.00042485,30]
[403947573,1769685054162,-1005.31410282,0.00042485,30]
[403947574,1769685054183,-150.0,0.00042485,30]
[403947575,1769685054194,-6543.61438304,0.00042485,30]
[403947576,1769685054204,-150.0,0.00042485,30]
[403947577,1769685054216,-700.09865927,0.00042485,30]
[403947578,1769685054228,-151.0,0.000425,120]
[403947579,1769685054238,-1120.63,0.000425,14]
[403947580,1769685054249,-527.0,0.000425,120]
[403947581,1769685054259,-448.99894081,0.00042521,60]
[403947582,1769685054270,-574.90600131,0.00042521,60]
[403947583,1769685054280,-456.97951461,0.00042521,60]
[403947584,1769685054289,-8514.0,0.00042554,30]
[403947585,1769685054299,-500.0,0.00042575,120]
[403947586,1769685054308,-385.5355018,0.00042575,30]
[403947587,1769685054318,-300.0,0.0004263,90]
[403947588,1769685054328,-2832.0,0.00042647,16]
[403947589,1769685054341,-500.0,0.00042699,120]
[403947590,1769685054351,-500.0,0.00042699,120]
[403947591,1769685054361,-858.62,0.00042699,2]
[403947592,1769685054371,-500.0,0.00042699,10]
[403947593,1769685054383,-122714.83195405,0.000427,30]
[403947594,1769685054393,-500.0,0.00042712,120]
[403947595,1769685054404,-500.0,0.00042729,60]
[403947596,1769685054413,-900.0,0.00042729,60]
[403947597,1769685054423,-385.5355018,0.0004274,30]
[403947598,1769685054433,-150.95,0.00042784,30]
[403947599,1769685054443,-63221.13040611,0.000428,15]
[403947600,1769685054452,-742.93304837,0.000428,8]
[403947601,1769685054461,-4445.52084636,0.000428,2]
[403947602,1769685054472,-163.0,0.00042814,16]
[403947603,1769685054482,-609.58969548,0.00042843,15]
[403947604,1769685054492,-609.58969548,0.00042843,15]
[403947605,1769685054501,-609.58969548,0.00042843,15]
[403947606,1769685054511,-609.58969548,0.00042843,15]
[403947607,1769685054520,-609.58969548,0.00042843,15]
[403947608,1769685054530,-609.58969548,0.00042843,15]
[403947609,1769685054539,-609.58969548,0.00042843,15]
[403947610,1769685054549,-609.58969548,0.00042843,15]
[403947611,1769685054558,-609.58969548,0.00042843,15]
[403947612,1769685054568,-609.58969548,0.00042843,15]
[403947613,1769685054578,-609.58969548,0.00042843,15]
[403947614,1769685054587,-609.58969548,0.00042843,15]
[403947615,1769685054596,-609.58969548,0.00042843,15]
[403947616,1769685054606,-609.58969548,0.00042843,15]
[403947617,1769685054617,-500.0,0.00042849,120]
[403947618,1769685054626,-500.0,0.00042876,120]
[403947619,1769685054636,-500.0,0.00042876,120]
[403947620,1769685054646,-500.0,0.00042876,120]
[403947621,1769685054656,-500.0,0.00042876,120]
[403947622,1769685054665,-500.0,0.00042876,120]
[403947623,1769685054675,-500.0,0.00042876,120]
[403947624,1769685054684,-500.0,0.00042876,120]
[403947625,1769685054694,-500.0,0.00042876,120]
[403947626,1769685054704,-500.0,0.00042876,120]
[403947627,1769685054718,-543.54812132,0.00042876,120]
[403947628,1769685054729,-1044.59,0.00042877,30]
[403947629,1769685054739,-150.0,0.00042877,30]
[403947630,1769685054749,-150.0,0.00042877,30]
[403947631,1769685054759,-150.19138809,0.00042877,30]
[403947632,1769685054769,-150.0,0.00042877,30]
[403947633,1769685054779,-150.27508154,0.00042877,30]
[403947634,1769685054789,-150.0,0.00042877,30]
[403947635,1769685054799,-150.0,0.00042877,30]
[403947636,1769685054808,-254.90600847,0.00042877,30]
[403947637,1769685054819,-150.0,0.00042877,30]
[403947638,1769685054828,-150.0,0.00042877,30]
[403947639,1769685054838,-150.0,0.00042877,30]
[403947640,1769685054848,-150.0,0.00042877,30]
[403947641,1769685054858,-150.0,0.00042877,30]
[403947642,1769685054867,-150.0,0.00042877,30]
[403947643,1769685054877,-150.0,0.00042877,30]
[403947644,1769685054887,-150.0,0.00042877,30]
[403947645,1769685054899,-150.0,0.00042877,30]
[403947646,1769685054910,-254.90600847,0.00042886,30]
[403947647,1769685054920,-150.0,0.00042886,30]
[403947648,1769685054930,-150.0,0.0004289,30]
[403947649,1769685054939,-150.0,0.0004289,30]
[403947650,1769685054950,-150.0,0.0004289,30]
[403947651,1769685054960,-150.0,0.00042891,30]
[403947652,1769685054970,-150.0,0.00042891,30]
[403947653,1769685054979,-254.90600847,0.00042896,30]
[403947654,1769685054989,-150.0,0.00042896,30]
[403947655,1769685054999,-500.0,0.00042899,120]
[403947656,1769685055008,-858.62,0.00042899,2]
[403947657,1769685055019,-500.0,0.00042899,10]
[403947658,1769685055029,-151292.43438398,0.000429,2]
[403947659,1769685055038,-151.0,0.000429,120]
[403947660,1769685055048,-151.0,0.000429,120]
[403947661,1769685055058,-287.153309,0.000429,120]
[403947662,1769685055068,-151.0,0.000429,120]
[403947663,1769685055077,-151.0,0.000429,120]
[403947664,1769685055087,-151.0,0.000429,120]
[403947665,1769685055097,-151.0,0.000429,120]
[403947666,1769685055107,-151.0,0.000429,120]
[403947667,1769685055117,-151.0,0.000429,120]
[403947668,1769685055128,-454.973104,0.000429,120]
[403947669,1769685055138,-454.973104,0.000429,120]
[403947670,1769685055148,-151.0,0.000429,120]
[403947671,1769685055158,-454.973104,0.000429,120]
[403947672,1769685055168,-454.973104,0.000429,120]
[403947673,1769685055177,-151.0,0.000429,90]
[403947674,1769685055188,-838.832184,0.000429,120]
[403947675,1769685055198,-151.0,0.000429,120]
[403947676,1769685055208,-838.832184,0.000429,120]
[403947677,1769685055218,-151.0,0.000429,120]
[403947678,1769685055230,-838.832184,0.000429,120]
[403947679,1769685055239,-164.516021,0.000429,120]
[403947680,1769685055249,-151.0,0.000429,120]
[403947681,1769685055259,-838.832184,0.000429,120]
[403947682,1769685055269,-151.0,0.000429,120]
[403947683,1769685055279,-259.733907,0.000429,15]
[403947684,1769685055289,-259.733907,0.000429,15]
[403947685,1769685055299,-151.0,0.000429,120]
[403947686,1769685055309,-259.733907,0.000429,15]
[403947687,1769685055320,-151.0,0.000429,120]
[403947688,1769685055333,-259.733907,0.000429,15]
[403947689,1769685055343,-151.0,0.000429,120]
[403947690,1769685055353,-161.768709,0.000429,120]
[403947691,1769685055364,-151.0,0.000429,120]
[403947692,1769685055375,-161.768709,0.000429,120]
[403947693,1769685055384,-151.0,0.000429,120]
[403947694,1769685055395,-161.768709,0.000429,120]
[403947695,1769685055406,-151.0,0.000429,10]
[403947696,1769685055416,-151.0,0.000429,120]
[403947697,1769685055427,-161.768709,0.000429,120]
[403947698,1769685055437,-151.0,0.000429,120]
[403947699,1769685055447,-151.0,0.000429,120]
[403947700,1769685055457,-274.139192,0.000429,120]
[403947701,1769685055467,-151.0,0.000429,120]
[403947702,1769685055476,-187.53629,0.000429,120]
[403947703,1769685055486,-187.53629,0.000429,120]
[403947704,1769685055496,-187.53629,0.000429,120]
[403947705,1769685055506,-187.53629,0.000429,120]
[403947706,1769685055515,-151.0,0.000429,120]
[403947707,1769685055525,-151.0,0.000429,120]
[403947708,1769685055535,-151.0,0.000429,120]
[403947709,1769685055544,-153.631349,0.000429,120]
[403947710,1769685055554,-536.403398,0.000429,120]
[403947711,1769685055564,-536.403398,0.000429,120]
[403947712,1769685055574,-536.403398,0.000429,120]
[403947713,1769685055583,-536.403398,0.000429,120]
[403947714,1769685055593,-151.0,0.000429,120]
[403947715,1769685055603,-8600.0,0.000429,15]
[403947716,1769685055612,-150.0,0.00042903,30]
[403947717,1769685055622,-150.0,0.00042904,30]
[403947718,1769685055631,-150.0,0.00042904,30]
[403947719,1769685055641,-385.5355018,0.00042904,30]
[403947720,1769685055651,-150.0,0.00042905,30]
[403947721,1769685055829,-150.0,0.00042905,30]
[403947722,1769685055838,-254.90600847,0.00042905,30]